Workbook

Sheet Cover Page
K2: Template version 25.1a (for incinerators) - 27/11/25
K4: Note that there is another version of this template available for co-incinerators
B8: Add photo
K13: Notes:
K14: This template may require adjustments by individual operators to meet specific reporting requirements as defined in the site Permit(s)
B29: Annual Performance Report 2025
B31: Permit EPR/UP3708SB
B33: Bridgwater Resource Recovery Limited
B35: other name of facility (if applicable)
B37: Bridgwater Resource Recovery Limited
B39: Year: | C39: 2025
B41: Address: | C41: Showground Road, Bridgwater, Somerset TA6 6AJ
B43: Tel:
B45: Email: | C45: scott.morse@brrl.uk
B47: Prepared by: | C47: Scott Morse | F47: Position: | G47: HSE Manager
B49: Approved by: | C49: Neil Townsend | F49: Position: | G49: Plant Manager
B51: Version: | C51: 1
B53: Issue Date: | C53: 2026-01-26

Sheet Facility Info
A1: =+'Cover Page'!$B$29 -> Annual Performance Report 2025 | E1: =+'Cover Page'!$B$33 -> Bridgwater Resource Recovery Limited
A3: Plant Description and Design | K3: Notes:
A5: Furnace technology Moving Grate Number of lines 1 Principal waste type Municipal /commercial & RDF. Stack height 40m Permitted plant capacity 122,640 tonnes per year Electrical generation capacity 9.58MWe The site is located off Showground Road, Bridgwater, Somerset, TA6 6AJ. The centre of the site is at National Grid Reference ST30970 35064. The site is to the north of M5 motorway, and west of the Bridgwater and Taunton Canal. The Installation has a single incineration line. Non-hazardous refuse derived fuel (RDF) and mixed municipal waste is delivered to the tipping hall by enclosed vehicles where it is tipped into the fuel storage area or directly into the fuel bunker. An overhead crane grab is used to spread the waste tipped into the waste bunker. The grabs transfer waste to the feed hopper which feeds the moving grate furnace where the waste is burned. The fuel will be dosed by an integrated hydraulic pusher on the inclined mobile grate inside the combustion chamber, which will adjust the height and distribution of fuel on the grate and is cooled by air. Electric air fans, equipped with variable frequency drives, provides primary and secondary air in the various sections of the combustion grate and furnace. Primary combustion air is sourced from the waste reception areas, which serves to keep the building under negative air pressure (aiding odour control within the waste reception areas). | K5: Include summary of plant design, design capacity, no. of combustion lines, electrical and heat capacity and any other general information that describes the facility, its location and purpose
A20: Summary of Operational Processes and Procedures
A22: The combustion chamber is designed to achieve good burnout of combustion gases by ensuring that these are maintained at a minimum 850°C for a minimum residence time of 2 seconds. At start-up, auxiliary industrial heating oil (IHO) fed burners will be used to heat up the combustion chamber to at least 850°C before any waste is introduced. During operation, the burners will also be switched on automatically if the temperature approached to fall below this 850°C and, during shutdown, the burners are used to maintain this temperature until there is no more unburnt waste in the combustion chamber. Emissions will be minimised by cleaning the waste combustion gases as follows: • Oxides of nitrogen (NOx) are abated using a 2-stage system of Selective Non-Catalytic Reduction (SNCR) and Selective Catalytic Reduction (SCR) • Acid Gases are abated using a 2-step process firstly dosing the combustion chamber with magnesium lime and the second step dosing of lime into the flue stream after the boiler • Dioxins, mercury, and volatiles are abated using activated carbon injection • Particulate matter including metals are abated by bag filters Process effluents and contaminated runoff will be discharged to foul sewer and treated at the nearby Wessex Water Bridgwater Water Recycling Centre. Uncontaminated surface water runoff from the buildings roofs, roadways and car parks will be discharged by the site’s drainage system to Wessex Water’s surface water drainage system. Additional attenuation is provided by an existing pond on the opposite side of Showground Road to the proposed facility. This will only be used in the event that the amount of surface water generated from the installation exceeds the nominal connection to the Wessex Water storm water system. A hydrobrake is installed to control the rate of outflow. Bottom ash is transferred off-site for processing. Air pollution control (APC) residues are stored in silos prior to removal from site in sealed tankers. The Installation generates electricity at a rate of approximately 9.58MWe with approximately 7.75MWe supplied to the grid | K22: Include summary of key processes and procedures such as (but not limited to); waste reception, control rooms, grate, bed and boiler, energy & heat generation, cooling systems, residue management, emission controls, health and safety systems, maintenance

Sheet Operational Data
A1: =+'Cover Page'!$B$29 -> Annual Performance Report 2025 | E1: =+'Cover Page'!$B$33 -> Bridgwater Resource Recovery Limited
A3: Operational Data
A4: Plant Size: | B4: 122640 | D4: tonnes pa | J4: Notes:
A5: Nominal net thermal input: | C5: MWth | J5: * Export capacity = nominal generation capacity at the generator terminals minus nominal parasitic load. ** CHP and district heating plants only - put N/A if no heat export. *** Combusted tonnage = tonnes delivered in period + (tonnes in bunker at start of period – tonnes in bunker at end of period), or equivalent calculation depending on plant type **** Availability Definition: The availability of a line is to be calculated by the number of hours the line reported Continuously Monitored emission levels to the Regulator through the calendar year divided by the total number of hours in that year. The overall plant availability is calculated as the mean of all lines in the plant. For clarity this includes periods of abnormal operation. Rationale: The primary function of an Energy from Waste facility is the disposal of waste. It follows therefore that the availability of a plant is determined by the period of time a facility spends undertaking this activity. *****NCV of waste: This should be completed for all plants which have a boiler. Calculate using total thermal power produced by boiler/boiler efficiency, or other suitable calculation.
A6: Nominal electrical export capacity*: | B6: 7.75 | C6: MWe
A7: Nominal heat export capacity**: | C7: MWth
A8: No. of combustion lines: | B8: 1 | C8: No. of steam turbines: | E8: 1
A10: Waste types received | B10: Unit | C10: Q1 | D10: Q2 | E10: Q3 | F10: Q4 | G10: Year Total | H10: %
A11: Household / Local Authority | B11: tonnes | G11: =SUM(C11:F11) -> 0 | H11: =IF(G11>0,G11/$G$21,"-") -> -
A12: Commercial & Industrial | G12: =SUM(C12:F12) -> 0 | H12: -
A13: Hazardous | G13: 0 | H13: -
A14: Clinical | G14: 0 | H14: -
A15: Waste wood (biomass) | G15: 0 | H15: -
A16: Refuse Derived Fuel (incl. SRF) - H'hold/LA | G16: =SUM(C16:F16) -> 0 | H16: -
A17: Refuse Derived Fuel (incl. SRF) - C&I | C17: 10877.8 | D17: 11665.28 | E17: 19128.32 | F17: 21840.75 | G17: 63512.15 | H17: 1
A18: Other [Please specify] | G18: 0 | H18: -
A19: Other [Please specify] | G19: 0 | H19: -
A20: Other [Please specify] | G20: 0 | H20: -
A21: Total waste received | C21: =SUM(C11:C20) -> 10877.8 | D21: =SUM(D11:D20) -> 11665.28 | E21: =SUM(E11:E20) -> 19128.32 | F21: =SUM(F11:F20) -> 21840.75 | G21: 63512.15
A22: Rejected Waste | G22: =SUM(C22:F22) -> 0 | H22: =IF(G22>0,G22/$G$21,"-") -> -
A23: Unprocessed waste transferred out | G23: =SUM(C23:F23) -> 0 | H23: =IF(G23>0,G23/$G$21,"-") -> -
A24: Total waste combusted *** | C24: 10401.882 | D24: 13842.49 | E24: 17828.47 | F24: 23403.23 | G24: =SUM(C24:F24) -> 65476.072
A26: Energy Usage / Export | B26: Unit | C26: Q1 | D26: Q2 | E26: Q3 | F26: Q4 | G26: Year Total | H26: KWh/te | J26: Password for protected cells A password has been set to prevent accidental editing of cells with formulae. If you still need to make an edit for some reason then the password = 1234
A27: Power generated at generator terminals | B27: MWh | C27: 7083.6 | D27: 9821.7 | E27: 12003.9 | F27: 13962.9 | G27: =SUM(C27:F27) -> 42872.1 | H27: =IF(G27>0,G27*1000/$G$24,"-") -> 654.7750757
A28: Power exported to grid and other external user(s) | C28: 5709.7 | D28: 8124 | E28: 10041 | F28: 11699 | G28: =SUM(C28:F28) -> 35573.7 | H28: =IF(G28>0,G28*1000/$G$24,"-") -> 543.3084013
A29: Power imported | C29: 312 | D29: 282 | E29: 258 | F29: 152 | G29: 1004 | H29: =IF(G29>0,G29*1000/$G$24,"-") -> 15.33384593
A30: Indicative parasitic load | B30: % | C30: =IF(C27>0,(C27-C28)/C27,"-") -> 0.1939550511 | D30: =IF(D27>0,(D27-D28)/D27,"-") -> 0.1728519503 | E30: 0.1635218554 | F30: 0.1621368054 | G30: =IF(G27>0,1-G28/(G27+G29),"-") -> 0.189223746
A31: Thermal Energy Exported ** | G31: =SUM(C31:F31) -> 0 | H31: =IF(G31>0,G31*1000/$G$24,"-") -> -
A32: R1 value (if applicable) | B32: R1 | C32: - | D32: - | E32: - | F32: -
A34: Waste Disposal & Recovery | B34: Unit | C34: Q1 | D34: Q2 | E34: Q3 | F34: Q4 | G34: Year Total | H34: % inputs
A35: APC Residues - produced | B35: tonnes | C35: 652.12 | D35: 708.07 | E35: 646.34 | F35: 780.04 | G35: =SUM(C35:F35) -> 2786.57 | H35: =IF(G35>0,G35/$G$24,"-") -> 0.04255860064
A36: IBA - produced | C36: 1887.42 | D36: 2768.2 | E36: 3248 | F36: 3499.54 | G36: 11403.16 | H36: =IF(G36>0,G36/$G$24,"-") -> 0.1741576679
A37: Metals recycling | G37: =SUM(C37:F37) -> 0 | H37: -
A38: Other | C38: 0 | D38: 0 | E38: 0 | F38: 0 | G38: =SUM(C38:F38) -> 0 | H38: -
A39: Other | C39: 0 | D39: 0 | E39: 0 | F39: 0 | G39: 0 | H39: -
A40: Other | C40: 0 | D40: 0 | E40: 0 | F40: 0 | G40: 0 | H40: -
A42: Raw Material Usage | B42: Unit | C42: Q1 | D42: Q2 | E42: Q3 | F42: Q4 | G42: Year Total | H42: Qty./te
A43: Mains Water | B43: ltrs | C43: 8912000 | D43: 7348000 | E43: 8800000 | F43: 7744000 | G43: =SUM(C43:F43) -> 32804000 | H43: =IF(G43>0,G43/$G$24,"-") -> 501.007452
A44: Other Water | B44: ltrs | G44: 0 | H44: =IF(G44>0,G44/$G$24,"-") -> -
A45: Ammonia | B45: kgs | G45: 0 | H45: -
A46: Urea | B46: kgs | C46: 57300 | D46: 99300 | E46: 111300 | F46: 110700 | G46: =SUM(C46:F46) -> 378600 | H46: 5.782265008
A47: Activated Carbon | B47: kgs | C47: 3890 | D47: 1600 | E47: 3500 | F47: 8300 | G47: 17290 | H47: 0.2640659324
A48: Lime / hydrated lime | B48: kgs | C48: 345210 | D48: 276220 | E48: 240460 | F48: 205340 | G48: 1067230 | H48: 16.29954222
A49: Fuel oil | B49: ltrs | C49: 288040 | D49: 133760 | E49: 161790 | F49: 165300 | G49: 748890 | H49: 11.43761342
A50: Gas | B50: m3 | G50: 0 | H50: -
A51: Other | G51: 0 | H51: -
A53: Summary | B53: Line/Unit | C53: Q1 | D53: Q2 | E53: Q3 | F53: Q4 | G53: Year Total | I53: Hrs in year
A54: Availability of waste combustion by line, hrs **** | B54: 1 | C54: 1503 | D54: 1727.5 | E54: 1786.5 | F54: 1896 | G54: =SUM(C54:F54) -> 6913 | H54: =+G54/$I$54 -> 0.7891552511 | I54: 8760 | J54: Change this figure to 8784 in a leap year
B55: 2 | G55: 0 | H55: =+G55/$I$54 -> 0
B56: 3 | G56: 0 | H56: 0
B57: 4 | G57: 0 | H57: 0
B58: 5 | G58: =SUM(C58:F58) -> 0 | H58: 0
A59: Hours of turbine operations, hrs | B59: 1 | C59: 1504.45 | D59: 1688 | E59: 1674.5 | F59: 1898 | G59: 6764.95 | H59: 0.7722545662
A60: Hours of turbine operations, hrs | B60: 2 | G60: 0 | H60: 0
A61: Hours of heat / steam export** | B61: hours | G61: 0 | H61: =IF(B61>0,G60/I54,"n/a") -> 0
A62: Net calorific value of waste***** | B62: MJ/kg | G62: 11
A63: Abnormal operation events | B63: qty. | F63: 2 | G63: 2 | H63: =IF(G63>0,"yes","no") -> yes
A64: Abnormal operation duration | B64: hours | F64: 2 | G64: 2 | H64: =+(G64)/I54 -> 0.0002283105023
A65: Permit Breaches | B65: qty. | C65: 4 | D65: 1 | E65: 2 | F65: 3 | G65: 10 | H65: =IF(G65>0,"yes","no") -> yes

Sheet Operational Summary
A1: =+'Cover Page'!$B$29 -> Annual Performance Report 2025 | E1: =+'Cover Page'!$B$33 -> Bridgwater Resource Recovery Limited
A3: Summary of Plant Operations and Maintenance during the reporting year | K3: Notes:
A5: During the operational year, five-weeks of planned outages were completed to undertake a comprehensive programme of maintenance and inspection works. Major activities included replacement of our main IBA pan conveyor to a chain type and strengthening of all other IBA chain conveyors, partial renewal of the combustion grate bars with enhanced securing arrangements, and repair of the combustion feed table with renewal of key wear components. Extensive boiler cleaning and inspection were carried out, including full grit blasting, non-destructive testing, 3D wear mapping, and statutory PSSR inspection, alongside flue gas treatment cleaning and inspection. Targeted refractory repairs within the combustion chamber were completed, and minor servicing of both the steam turbine and generator was undertaken. These works have ensured continued safe, reliable, and compliant operation of the plant. | K5: Include summary of key operational and/or maintenance activity undertaken in the year, such as any major component upgrades and/or replacements
A29: =+'Cover Page'!C39 -> 2025 | B29: Plant shut-downs
A30: Start date | B30: End date | C30: Reason for shut-down | K30: Provide a very brief reason for plant shut-down e.g. "Shut-down prior to major outage"; "Emergency shut-down due to boiler tube leak". All emergency shut-downs must be listed (irrespective of whether or not they were required to be reported to the EA). There is no need to include periods of hot-standby here (e.g. to clear feed chute hopper blockages). For clinical waste incinerators which require regular shut-downs for boiler cleaning, there is no need to record these here (only those prior to major outages, and emergency shut-downs).
A31: 2025-01-01 | B31: 2025-01-20 | C31: IBA transport line failure
A32: 2025-02-20 | B32: 2025-02-22 | C32: Feed pusher failure
A33: 2025-03-20 | B33: 2025-03-26 | C33: IBA transport line failure
A34: 2025-04-22 | B34: 2025-04-28 | C34: Combustion chamber grate bar repairs
A35: 2025-06-01 | B35: 2025-06-07 | C35: Combustion chamber grate bar repairs
A36: 2025-06-21 | B36: 2025-07-19 | C36: Main planned outage
A37: 2025-09-28 | B37: 2025-09-29 | C37: IBA transport line failure
A38: 2025-10-11 | B38: 2025-10-18 | C38: Mini planned outage

Sheet Perf. Form 1
A1: =+'Cover Page'!C39 -> 2025 | B1: Annual Reporting Performance Form 1
A3: =+'Cover Page'!B31 -> Permit EPR/UP3708SB | F3: Operator: | G3: =+'Cover Page'!B37 -> Bridgwater Resource Recovery Limited
A4: Facility: | B4: =+'Cover Page'!B33:I33 -> Bridgwater Resource Recovery Limited | F4: Form: | G4: Performance 1
A6: Reporting Period from: | D6: 2025-01-01 | F6: to: | G6: 2025-12-31
A8: =+A1 -> 2025 | B8: Annual Reporting of Waste Disposal and Recovery
A9: Waste Description | C9: Disposal Route(s) | E9: Disposal Tonnes | G9: Recovery Tonnes | I9: % / tonne of waste incinerated
A10: 1) Hazardous Wastes
A11: APC Residues | C11: Castle Environmental | G11: 2787 | I11: =IF((E11+G11)>0,(E11+G11)/'Operational Data'!$G$24, "-") -> 0.04256516793
A12: IBA | I12: =IF((E12+G12)>0,(E12+G12)/'Operational Data'!$G$24, "-") -> -
I13: =IF((E13+G13)>0,(E13+G13)/'Operational Data'!$G$24, "-") -> -
I14: =IF((E14+G14)>0,(E14+G14)/'Operational Data'!$G$24, "-") -> -
A15: Total Hazardous Waste | E15: =SUM(E11:F14) -> 0 | G15: =SUM(G11:H14) -> 2787 | I15: =IF((E15+G15)>0,(E15+G15)/'Operational Data'!$G$24, "-") -> 0.04256516793
A17: 2) Non-Hazardous Wastes
A18: IBA | C18: Fortis IBA | G18: 11403 | I18: =IF((E18+G18)>0,(E18+G18)/'Operational Data'!$G$24, "-") -> 0.1741552242
A19: Ferrous Metal | I19: =IF((E19+G19)>0,(E19+G19)/'Operational Data'!$G$24, "-") -> -
A20: Process Water | I20: =IF((E20+G20)>0,(E20+G20)/'Operational Data'!$G$24, "-") -> -
I21: =IF((E21+G21)>0,(E21+G21)/'Operational Data'!$G$24, "-") -> -
I22: =IF((E22+G22)>0,(E22+G22)/'Operational Data'!$G$24, "-") -> -
A23: Total Non-Hazardous Waste | E23: =SUM(E18:F22) -> 0 | G23: =SUM(G18:H22) -> 11403 | I23: =IF((E23+G23)>0,(E23+G23)/'Operational Data'!$G$24, "-") -> 0.1741552242
A24: TOTAL WASTE | E24: =+E23+E15 -> 0 | G24: =+G23+G15 -> 14190 | I24: =IF((E24+G24)>0,(E24+G24)/'Operational Data'!$G$24, "-") -> 0.2167203921
A26: Operator’s comments :
A31: =+A1 -> 2025 | B31: Annual Reporting of Water and Other Raw Material Usage
A32: Raw Material | E32: Usage | G32: Unit | H32: Specific Usage | J32: Unit
A33: Mains Water | E33: =+'Operational Data'!G43/1000 -> 32804 | G33: m3 | H33: =IF(E33>0,E33/'Operational Data'!$G$24,"-") -> 0.501007452 | J33: m3/te
A34: Total Water | E34: =+'Operational Data'!G44+'Operational Data'!G43/1000 -> 32804 | G34: m3 | H34: =IF(E34>0,E34/'Operational Data'!$G$24,"-") -> 0.501007452 | J34: m3/te
A35: Urea / Ammonia | E35: =+'Operational Data'!G46 -> 378600 | G35: kg | H35: =IF(E35>0,E35/'Operational Data'!$G$24,"-") -> 5.782265008 | J35: kg/te
A36: Activated Carbon | E36: =+'Operational Data'!G47 -> 17290 | G36: kg | H36: =IF(E36>0,E36/'Operational Data'!$G$24,"-") -> 0.2640659324 | J36: kg/te
A37: Lime / hydrated lime / Sodium Bicarb. | E37: =+'Operational Data'!G48 -> 1067230 | G37: kg | H37: =IF(E37>0,E37/'Operational Data'!$G$24,"-") -> 16.29954222 | J37: kg/te
A39: Operator’s comments :
A43: =+A31 -> 2025 | B43: Annual Reporting of other performance indicators
A44: Parameter | C44: Results by Line
C45: A1 | D45: A2 | E45: A3 | F45: A4 | G45: A5 | I45: Turbine 1 | J45: Turbine 2
A46: Operating hours for the year, hours | C46: =+'Operational Data'!G54 -> 6913 | I46: =+'Operational Data'!G59 -> 6764.95
A47: Number of periods of abnormal operation, qty.
A48: Cumulative hours of abnormal operation for this year, hours
A50: Operator’s comments :
A54: Signed: | G54: Date:

Sheet Energy Form 1
A1: =+'Cover Page'!C39 -> 2025 | B1: Annual Reporting of Energy Usage/Export
A3: =+'Cover Page'!B31 -> Permit EPR/UP3708SB | F3: Operator: | G3: =+'Cover Page'!B37 -> Bridgwater Resource Recovery Limited
A5: Facility: | B5: =+'Cover Page'!B33:I33 -> Bridgwater Resource Recovery Limited | F5: Form: | G5: Energy 1
A7: Reporting Period from: | D7: =+'Perf. Form 1'!D6:E6 -> 2025-01-01 | F7: to: | G7: =+'Perf. Form 1'!G6:H6 -> 2025-12-31
A9: Energy Source | D9: Energy Usage | F9: Unit | G9: Specific Usage (KWh/tonne incinerated
A10: Electricity Produced | D10: =+'Operational Data'!G27 -> 42872.1 | F10: MWh | G10: =+'Operational Data'!H27 -> 654.7750757
A11: Electricity Imported | D11: =+'Operational Data'!G29 -> 1004 | F11: MWh | G11: =+'Operational Data'!H29 -> 15.33384593
A12: Electricity Exported | D12: =+'Operational Data'!G28 -> 35573.7 | F12: MWh | G12: =+'Operational Data'!H28 -> 543.3084013
A13: Gas Oil | D13: =+'Operational Data'!G49/1000 -> 748.89 | F13: tonnes
A14: Steam/hot water exported | D14: =+'Operational Data'!G31 -> 0 | F14: GWh | G14: =+'Operational Data'!H31 -> -
A18: Operator’s comments :
A29: Signed: | G29: Date:

Sheet Permit Compliance
A1: =+'Cover Page'!$B$29 -> Annual Performance Report 2025 | E1: =+'Cover Page'!$B$33 -> Bridgwater Resource Recovery Limited
A3: Summary of Permit Compliance
A5: Compliance with permit limits for continuously monitored pollutants
A7: The plant met its emission limits as shown in the table below:
A8: Substance | C8: Percentage time compliant during operationNote 1 | L8: Notes:
C9: Half-hourly limit | F9: Daily limit | L9: Note 1: Please report to 2 decimal places, i.e. xx.xx% Note 2: Please enter into this table any permit non-compliances that the EA has given a CCS score for. Please also enter any other non-compliances which you have notified to the EA (e.g. ELV exceedances) but which have not yet been assessed by the EA. There is no need to enter any notifications which were subsequently assessed by the EA not to be permit breaches. Note 3: Please enter information here (rather than just referencing the notifications that were sent to the EA) including where relevant the incineration line reference, pollutant and value of the measured result for any ELV exceedances.
A10: Particulates | C10: 1 | F10: 1
A11: Oxides of nitrogen | C11: 1 | F11: 1
A12: Sulphur dioxide | C12: 1 | F12: 1
A13: Carbon monoxide | C13: 0.9995 | F13: 1
A14: Total organic carbon | C14: 1 | F14: 1
A15: Hydrogen chloride | C15: 1 | F15: 1
A16: Hydrogen fluoride | C16: 1 | F16: 1
A19: Summary of non-compliances under the permit Note 2
A20: Date | B20: Summary of non-compliance Note 3 | D20: Reason | G20: Measures taken to prevent reoccurrence | H20: CCS score if applicable*
H21: Impact | I21: Root cause
A22: 2025-01-13 | B22: 1/2 hour CO breach | D22: Fuel related, incomplete combustion | G22: Firing the burners and burning the material off.
A23: 2025-01-14 | B23: 1/2 hour CO breach | D23: Fuel related, incomplete combustion | G23: Firing the burners and burning the material off.
A24: 2025-02-11 | B24: 1/2 hour CO breach | D24: Wet waste caused incomplete combustion, furnace temperatures and air flowquickly recovered, hoever the ELV half hour could not be recovered. | G24: Burners brought into service to aid combustion.
A25: 2025-03-31 | B25: 1/2 hour CO breach | D25: Grate feed pushers were inhibited due to low O2 in furnace. The pushers did not restart automatically once the O2 levels returned to normal parameters causing loss of feed to grate. CO spiked to due to excess air. Post combustion burners initiated however could not recover in time. | G25: Burners initated due to loss of feed on grate. Pushers restarted in manual. Investigation ongoing to find root cause of failure to restart pushers in automatic.
A26: 2025-05-30 | B26: 1/2 hour CO breach | D26: Explosion on the grate from the waste, causing high combustion chamber pressure of 21.7mmH2O, which caused a boiler trip and the resulting emissions. | G26: Boiler purge undertaken. Burners brought into service to aid combustion.
A27: 2025-07-19 | B27: 1/2 hour CO breach | D27: Change in air flow characteristics after resuming operations post annual outage. Post combustion burners initiated, however coud not recover CO spikes in time. | G27: Burners initiated due to poor combustion.
A28: 2025-08-07 | B28: 1/2 hour CO breach | D28: Boiler tripped due to a sudden increase in furnace pressure. The plant was reset and restarted promptly. Burners were put into service, however the half hour CO ELV was breached. | G28: Boiler tripped and recovered quickly.
A29: 2025-10-20 | B29: Daily ELV Hg | D29: Blockage on the Powdered Activated Carbon delivery system. | G29: Abnormal operations - Immediate investigation into the abatement system.
A30: 2025-10-31 | B30: 1/2 hour CO breach | D30: Fuel related, low O2 caused a grate to trip | G30: Restart grate follwing trip.
A31: 2025-11-14 | B31: Daily ELV NH3 | D31: Loss of combustion parameters | G31: Immediate investigation into current combustion settings by industry combustion expert.
A37: *If the Environment Agency (EA) has given a Compliance Classification Scheme (CCS) score due to a permit non-compliance it should be entered here (CCS4 = No impact; CCS3 = Minor impact; CCS2 = Significant impact; CCS1 = Major impact). If the EA has not yet assessed a non-compliance which you have notified to them, these columns should be left blank. Enter N/A if no score was given for the root cause.
A39: Summary of any complaints received and actions to taken to resolve them.
A40: Date | B40: Summary of complaint [including Line/Reference] | E40: Reason (including whether substantiated by the operator or the EA) | H40: Measures taken to prevent reoccurrence

Sheet Improvements
A1: =+'Cover Page'!$B$29 -> Annual Performance Report 2025 | E1: =+'Cover Page'!$B$33 -> Bridgwater Resource Recovery Limited
A3: Summary of Plant Improvements
A5: Summary of any efficiency improvements that have been completed within the year.
A6: Change waste suppliers to reduce on downtime. Replace IBA pan conveyor for chain conveyor type. Strengthening IBA chain conveyors. Change of grate bar type. Thermal insulation upgrade on external systems.
A16: Summary of any permit improvement conditions that have been completed within the year and the resulting environmental benefits.
A17: The following improvement conditions have formally been submitted during this period: IC1, IC2, IC10
A27: Summary of any changes to the plant or operating techniques which required a variation to the permit and a summary of the resulting environmental impact.
A38: Summary of any other improvements made to the plant or planned to be made and a summary of the resulting environmental benefits.
A39: Completion of remaining improvement conditions planned for 2026.

Sheet Public Liasion
A1: =+'Cover Page'!$B$29 -> Annual Performance Report 2025 | E1: =+'Cover Page'!$B$33 -> Bridgwater Resource Recovery Limited
A3: Details of Public & Stakeholder Liaison
A5: Summary of events held during the reporting year.
A6: Date | C6: Description
A16: List of events planned for next year
A17: Date | C17: Description
A29: If you wish to be involved in the public liaison programme, please contact _________________

Sheet CO2 N2O
A1: =+'Cover Page'!$B$29 -> Annual Performance Report 2025 | C1: =+'Cover Page'!$B$33 -> Bridgwater Resource Recovery Limited
A3: Carbon dioxide emissions and biogenic content of waste inputs | F3: Notes:
A5: Carbon dioxide emissions (all types of plant)
B6: Annual mass of carbon dioxide released | C6: tonnes | D6: 83628.54
B7: Annual mass of carbon dioxide released per tonne of waste burned | C7: t CO2 / t waste | D7: =+D6/'Operational Data'!G24 -> 1.277238195 | F7: Note 1: All permits require operators to continuously monitor CO2 to EN14181 and flow to BS EN 16911-2 (unless otherwise agreed in writing). Operators must therefore use the results from these instruments to calculate their annual CO2 emissions. Where an operator does not have a flow meter calibrated to BS EN 16911-2, the averaged flow measurement from that year's periodic monitoring can be used instead. If the plant does not have calibrated CO2 CEMS, a suitably justified emissions factor can be used.
B8: Annual mass of carbon dioxide released per MWh of energy exported | C8: t CO2 / MWh export | D8: =+D6/'Operational Data'!G27 -> 1.950651823
B9: Description of how annual carbon dioxide mass emission has been calculated. See Note 1 | C9: CO2 measured using CEMS in accordance with permit to EN14181
A10: Nitrous oxide emissions (only plants which use ammonia or urea to abate NOx emissions)
B11: Annual mass emissions of nitrous oxide | C11: tonnes N2O | D11: 26.85
B12: Description of how annual nitrous oxide mass emission has been calculated See Note 2 | C12: N2O measured using CEMS in accordance with permit to EN14181 | F12: Note 2: All permits require operators to continuously monitor N2O to EN14181 and flow to BS EN 16911-2, unless otherwise agreed in writing. Operators must therefore use the results from these instruments to calculate their annual N2O emissions. Where an operator does not have a flow meter calibrated to BS EN 16911-2, the averaged flow measurement from periodic monitoring can be used instead. If the plant does not have calibrated N2O CEMS, data from periodic monitoring or a suitably justified emissions factor can be used instead.
A13: Total annual carbon dioxide + nitrous oxide emissions. See Note 3. | C13: tonnes CO2e | D13: =+(D11*265)+D6 -> 90743.79 | F13: Note 3: Total annual carbon dioxide and nitrous oxide emissions reported as carbon dioxide equivalent where 1 tonne nitrous oxide is equivalent to 265 tonnes carbon dioxide.
A14: Biogenic CO2 emissions (See Note 4) | F14: Note 4: Only plants combusting residual municipal waste, refuse derived fuel or solid recovered fuel need complete this section.
B15: Percentage of total carbon dioxide emissions arising from biogenic waste | C15: %
B16: No. of measurements undertaken | C16: Number
B17: Description of how percentage biogenic carbon dioxide emissions have been measured or calculated. See Note 5 | C17: Supplied in permit application | F17: Note 5: The results from C14 sampling should be used if this is carried out at the plant (either via an installed sampler or from spot samples). Otherwise, as an approximation (and in lieu of any more accurate metrics which may be developed in future), the measured or estimated biogenic fraction by net calorific value (see Note 6) can be assumed to be the same as the biogenic CO2 fraction of the total CO2 emissions from the plant.
A18: Biogenic fraction of waste feedstock (See Note 4)
B19: Yearly average biogenic percentage of the waste by net calorific value (NCV) | C19: %
B20: Description of how biogenic percentage (by NCV) has been calculated or estimated. See Note 6 | C20: Supplied in permit application | F20: Note 6: If C14 sampling is carried out at the plant, the methodology set out in the embedded document entitled "Renewable Energy Association Energy Content of Fuels - Description of Method" embedded below can be used to calculate the biogenic percentage by net calorific value. Otherwise, data from waste sampling or BIOMA software can be used; or if none of these are available, an estimated figure with justification or a figure assumed on the basis of up-to-date industry data can be used.
B21: Yearly average biogenic percentage of the waste by mass | C21: %
B22: If waste sampling undertaken, no. of samples used to ascertain average biogenic percentages above | C22: Number
B23: Description of how biogenic percentage (by mass) has been calculated or estimated. See Note 7 | F23: Note 7: Where available, data from waste sampling should be used; otherwise, an estimated figure with justification can be used, or a figure assumed on the basis of up-to-date industry data.
B25: Comments:

Sheet Residues
A1: =+'Cover Page'!$B$29 -> Annual Performance Report 2025 | E1: =+'Cover Page'!$B$33 -> Bridgwater Resource Recovery Limited
A3: Summary of Residue Handling for the reporting year
A5: Incincertor Bottom Ash collected in IBA Hall and loaded onto artic trailers to be sent to Fortis IBA at Andover for metal recycling and recovery to be used in construction blocks. APCr collected into silo and loaded onto artic tankers to be sent to Castle Environmental Services in Ilkeston for recovery. BFA collected into silo and loaded onto artic tankers to be sent to Castle Environmental Services in Stoke on Trent for recovery. | K5: Include in here a summary of residue handling regimes and destinations
A28: Residue Quality Monitoring Requirements
A30: Summary of monitoring undertaken and compliance
A31: IBA, APCr and BFA sampling monthly, analysis reporting by Socotec.
A38: Commentary on any specific events
A39: Date & Event | C39: Description
A40: Monthly | C40: 2 x IBA samples taken and sent to Socotec for analysis.
A42: Monthly | C42: BFA samples taken and sent to Socotec for analysis.
A44: Quarterly | C44: APCr samples taken and sent to Socotec for analysis.
A52: Residue Quality Monitoring Results
A53: Parameter (unit) | C53: Limit* | D53: Normal Operation
D54: Bottom ash | F54: APC Residues
A55: Loss on Ignition (average %) | C55: <5% | D55: N/A
A56: Total Organic Carbon (average %) | C56: <3% | D56: 0.53
A57: No. of Assessments Undertaken | C57: --- | D57: 24 | F57: 4
A58: No. of Hazardous Results | C58: --- | D58: 1
A59: * The permit will specify a limit of either 5% loss on ignition or 3% total organic carbon. If both are measured anyway, please enter the results here, even where the limit does not apply.
A61: Comments :
A62: IBA 281125 result was classified as hazardous due to being above the threshold limit for HP14:Ecotoxic due to elevated copper and lead. The following two samples have been deemed non-hazardous.

Sheet Water
A1: =+'Cover Page'!$B$29 -> Annual Performance Report 2025 | E1: =+'Cover Page'!$B$33 -> Bridgwater Resource Recovery Limited
A3: Emissions to Water
A5: Summary of monitoring undertaken and compliance
A6: N/A
A13: Commentary on any specific events
A14: Date & Event | C14: Description
A22: Emissions to Water / Sewer
A23: Parameter | D23: Monitoring Frequency | F23: Limit | G23: Target | H23: Max. | I23: Average

Sheet Air (periodic)
A1: =+'Cover Page'!$B$29 -> Annual Performance Report 2025 | E1: =+'Cover Page'!$B$33 -> Bridgwater Resource Recovery Limited
A3: Emissions to Air (periodically monitored)
A5: Summary of monitoring undertaken, standards used and compliance | K5: Notes:
K6: Template may require adjustment for any bespoke monitoring requirements of permit - please also check that all default ELV values, reference periods and the stated oxygen reference value match those for your plant, and edit if necessary!
A9: Results of emissions to air that are periodically monitored - oxygen reference 11%
A10: Substance | C10: Ref. Period | D10: Emission Limit Value | F10: Average | K10: User to add additional tables as necessary, depending on whether quarterly or bi-annual reporting is required for the compliance year
F11: A1 | G11: A2 | H11: A3 | I11: A4 | J11: A5
A12: Hydrogen fluoride | C12: 0.5-8hrs | D12: 1.0 mg/m3 | F12: 0.1
A13: Cd and Tl and their compounds | C13: 0.5-8hrs | D13: 0.02mg/m3 | F13: 0.001
A14: Hg and its compounds | C14: 24hrs | D14: 0.02 mg/m3 | F14: =4.992/1000 -> 0.004992
A15: Sb, As, Pb, Cr, Co, Cu, Mn, Ni, V and their compounds | C15: 0.5-8hrs | D15: 0.3 mg/m3 | F15: 0.065
A16: Dioxins & Furans (I-TEQ) | C16: 6-8hrs | D16: 0.04 ng/m3 | F16: 0.045
A17: Dioxin-like PCB's (WHO12) | C17: 6-8hrs | D17: None set ng/m3 | F17: 0.005
A21: Comments :

Sheet Air (CEMS)
A1: =+'Cover Page'!$B$29 -> Annual Performance Report 2025 | I1: =+'Cover Page'!$B$33 -> Bridgwater Resource Recovery Limited
A3: Emissions to Air (continuously monitored)
N4: Notes:
A5: Summary of monitoring undertaken, standards used and compliance | N5: Template may require adjustment for any bespoke monitoring requirements of permit
A6: 2 x CEMS monitoring 24/7 | N6: Please check that all default ELV values match those for your plant and edit if necessary!
N7: Report to 1 decimal place
A11: Results of emissions to air that are continuously monitored (maximum and average values for each line) - oxygen reference 11%
A12: Substance | B12: Reference Period | C12: Emission Limit Value | D12: A1 | F12: A2 | H12: A3 | J12: A4 | L12: A5
D13: Max. | E13: Avg. | F13: Max. | G13: Avg. | H13: Max. | I13: Avg. | J13: Max. | K13: Avg. | L13: Max. | M13: Avg.
A14: Oxides of nitrogen | B14: Daily mean | C14: 120 mg/m3 | D14: =+NOx!O19 -> 114.4 | E14: =+NOx!N19 -> 96.6
B15: ½ hourly mean* | C15: 400 mg/m3 * | D15: =+NOx!M19 -> 197.2 | E15: =+NOx!L19 -> 95.64166667
A16: Particulates | B16: Daily mean | C16: 5 mg/m3 | D16: =+Particulates!O19 -> 0.23 | E16: =+Particulates!N19 -> 0.035
B17: ½ hourly mean* | C17: 30 mg/m3 * | D17: =+Particulates!M19 -> 2.17 | E17: =+Particulates!L19 -> 0.1041666667
A18: Total Organic Carbon | B18: Daily mean | C18: 10 mg/m3 | D18: =+TOC!O19 -> 0.9 | E18: =+TOC!N19 -> 0.2
B19: ½ hourly mean* | C19: 20 mg/m3 * | D19: =+TOC!M19 -> 6.1 | E19: =+TOC!L19 -> 0.2916666667
A20: Hydrogen chloride | B20: Daily mean | C20: 6 mg/m3 | D20: =+HCl!O19 -> 6 | E20: =+HCl!N19 -> 4.966666667
B21: ½ hourly mean* | C21: 60 mg/m3 * | D21: =+HCl!M19 -> 47.9 | E21: =+HCl!L19 -> 5
A22: Sulphur dioxide | B22: Daily mean | C22: 30 mg/m3 | D22: =+'SO2'!O19 -> 28.2 | E22: =+'SO2'!N19 -> 8.3
B23: ½ hourly mean* | C23: 200 mg/m3 * | D23: =+'SO2'!M19 -> 113.4 | E23: =+'SO2'!L19 -> 8.258333333
A24: Carbon monoxide | B24: Daily mean | C24: 50 mg/m3 | D24: =+'CO 0.5 hourly'!O22 -> 38.4 | E24: =+'CO 0.5 hourly'!N22 -> 5.658333333
B25: ½ hourly mean* | C25: 100mg/m3 * | D25: =+'CO 0.5 hourly'!M22 -> 203.6 | E25: =+'CO 0.5 hourly'!L22 -> 6.225
A27: Ammonia | B27: Daily mean | C27: 10 mg/m3 | D27: =+'NH3'!O19 -> 10.3 | E27: =+'NH3'!N19 -> 1.866666667
A28: * = delete as appropriate, depending on whether your plant has half-hourly or 10-min CO ELVs
A29: Comments :

Sheet HCl
A1: =+'Cover Page'!$B$29 -> Annual Performance Report 2025 | E1: =+'Cover Page'!$B$33 -> Bridgwater Resource Recovery Limited
A3: Monitoring of Hydrogen Chloride emissions | D3: Whole Installation | G3: See Notes in Cell Q3 | J3: =+A3 -> Monitoring of Hydrogen Chloride emissions | N3: Per Combustion Line | Q3: Notes:
Q4: User to add logic to complete Whole installation, Table A5:G18. From the data in Per Combustion Line, Table J6:O79, subject to No. of lines installed
A5: =+'Cover Page'!C39 -> 2025 | B5: 1/2 Hourly Reference Periods | E5: Daily Reference Periods
A6: mg/Nm3 | B6: 1/2 hourly HCl ELV | C6: Monthly mean of half-hourly averages | D6: Highest half- hourly average | E6: Daily HCl ELV | F6: Monthly mean of daily averages | G6: Highest daily average | J6: =+A5 -> 2025 | K6: mg/Nm3 | L6: Monthly mean of half-hourly averages | M6: Highest half- hourly average | N6: Monthly mean of daily averages | O6: Highest daily average
A7: Jan | B7: 60 | C7: 5 | D7: 18.8 | E7: 6 | F7: 4.7 | G7: 5.2 | J7: A1 | K7: Jan | L7: 5 | M7: 18.8 | N7: 4.7 | O7: 5.2
A8: Feb | B8: 60 | C8: 4.8 | D8: 15.5 | E8: 6 | F8: 4.8 | G8: 5.8 | K8: Feb | L8: 4.8 | M8: 15.5 | N8: 4.8 | O8: 5.8
A9: Mar | B9: 60 | C9: 5.1 | D9: 22 | E9: 6 | F9: 5.1 | G9: 5.7 | K9: Mar | L9: 5.1 | M9: 22 | N9: 5.1 | O9: 5.7 | Q9: Whole Installation table A5:G18:
A10: Apr | B10: 60 | C10: 5.6 | D10: 47.9 | E10: 6 | F10: 5.4 | G10: 6 | K10: Apr | L10: 5.6 | M10: 47.9 | N10: 5.4 | O10: 6 | Q10: Mean: for 1/2 hourly and daily periods calculate mean of values across all operational combustion lines for the month
A11: May | B11: 60 | C11: 5.4 | D11: 31.4 | E11: 6 | F11: 5.5 | G11: 5.9 | K11: May | L11: 5.4 | M11: 31.4 | N11: 5.5 | O11: 5.9
A12: Jun | B12: 60 | C12: 5.2 | D12: 16.4 | E12: 6 | F12: 5.1 | G12: 5.8 | K12: Jun | L12: 5.2 | M12: 16.4 | N12: 5.1 | O12: 5.8
A13: Jul | B13: 60 | C13: 3.7 | D13: 8.3 | E13: 6 | F13: 3.7 | G13: 5.1 | K13: Jul | L13: 3.7 | M13: 8.3 | N13: 3.7 | O13: 5.1 | Q13: Maximum: for 1/2 hourly and daily periods use the highest value across all operational combustion lines for the month
A14: Aug | B14: 60 | C14: 5.1 | D14: 12.9 | E14: 6 | F14: 5.1 | G14: 5.6 | K14: Aug | L14: 5.1 | M14: 12.9 | N14: 5.1 | O14: 5.6
A15: Sep | B15: 60 | C15: 5.1 | D15: 38.7 | E15: 6 | F15: 5.2 | G15: 5.9 | K15: Sep | L15: 5.1 | M15: 38.7 | N15: 5.2 | O15: 5.9
A16: Oct | B16: 60 | C16: 5.3 | D16: 19.6 | E16: 6 | F16: 5.3 | G16: 6 | K16: Oct | L16: 5.3 | M16: 19.6 | N16: 5.3 | O16: 6
A17: Nov | B17: 60 | C17: 4.6 | D17: 31.4 | E17: 6 | F17: 4.7 | G17: 5.8 | K17: Nov | L17: 4.6 | M17: 31.4 | N17: 4.7 | O17: 5.8
A18: Dec | B18: 60 | C18: 5.1 | D18: 35.1 | E18: 6 | F18: 5 | G18: 6 | K18: Dec | L18: 5.1 | M18: 35.1 | N18: 5 | O18: 6
K19: Annual | L19: =AVERAGE(L7:L18) -> 5 | M19: =MAX(M7:M18) -> 47.9 | N19: =AVERAGE(N7:N18) -> 4.966666667 | O19: =MAX(O7:O18) -> 6
J21: =+A5 -> 2025 | K21: mg/Nm3 | L21: Monthly mean of half-hourly averages | M21: Highest half- hourly average | N21: Monthly mean of daily averages | O21: Highest daily average
J22: A2 | K22: Jan
K23: Feb
K24: Mar
K25: Apr
K26: May
K27: Jun
K28: Jul
K29: Aug
K30: Sep
K31: Oct
K32: Nov
K33: Dec
K34: Annual | L34: =AVERAGE(L22:L33) ->  | M34: =MAX(M22:M33) -> 0 | N34: =AVERAGE(N22:N33) ->  | O34: =MAX(O22:O33) -> 0
J36: =+A5 -> 2025 | K36: mg/Nm3 | L36: Monthly mean of half-hourly averages | M36: Highest half- hourly average | N36: Monthly mean of daily averages | O36: Highest daily average
J37: A3 | K37: Jan
K38: Feb
K39: Mar
K40: Apr
K41: May
K42: Jun
K43: Jul
K44: Aug
K45: Sep
K46: Oct
K47: Nov
A48: Comments : | K48: Dec
K49: Annual | L49: =AVERAGE(L37:L48) ->  | M49: =MAX(M37:M48) -> 0 | N49: =AVERAGE(N37:N48) ->  | O49: =MAX(O37:O48) -> 0
J51: =+A5 -> 2025 | K51: mg/Nm3 | L51: Monthly mean of half-hourly averages | M51: Highest half- hourly average | N51: Monthly mean of daily averages | O51: Highest daily average
J52: A4 | K52: Jan
K53: Feb
K54: Mar
K55: Apr
K56: May
K57: Jun
K58: Jul
K59: Aug
K60: Sep
K61: Oct
K62: Nov
K63: Dec
K64: Annual | L64: =AVERAGE(L52:L63) ->  | M64: =MAX(M52:M63) -> 0 | N64: =AVERAGE(N52:N63) ->  | O64: =MAX(O52:O63) -> 0
J66: =+A5 -> 2025 | K66: mg/Nm3 | L66: Monthly mean of half-hourly averages | M66: Highest half- hourly average | N66: Monthly mean of daily averages | O66: Highest daily average
J67: A5 | K67: Jan
K68: Feb
K69: Mar
K70: Apr
K71: May
K72: Jun
K73: Jul
K74: Aug
K75: Sep
K76: Oct
K77: Nov
K78: Dec
K79: Annual | L79: =AVERAGE(L67:L78) ->  | M79: =MAX(M67:M78) -> 0 | N79: =AVERAGE(N67:N78) ->  | O79: =MAX(O67:O78) -> 0

Sheet SO2
A1: =+'Cover Page'!$B$29 -> Annual Performance Report 2025 | E1: =+'Cover Page'!$B$33 -> Bridgwater Resource Recovery Limited
A3: Monitoring of Sulphur dioxide emissions | D3: Whole Installation | G3: See Notes in Cell Q3 | J3: =+A3 -> Monitoring of Sulphur dioxide emissions | N3: Per Combustion Line | Q3: Notes:
Q4: User to add logic to complete Whole installation, Table A5:G18. From the data in Per Combustion Line, Table J6:O79, subject to No. of lines installed
A5: =+'Cover Page'!C39 -> 2025 | B5: 1/2 Hourly Reference Periods | E5: Daily Reference Periods
A6: mg/Nm3 | B6: 1/2 hourly SO2 ELV | C6: Monthly mean of half-hourly averages | D6: Highest half- hourly average | E6: Daily SO2 ELV | F6: Monthly mean of daily averages | G6: Highest daily average | J6: =+A5 -> 2025 | K6: mg/Nm3 | L6: Monthly mean of half-hourly averages | M6: Highest half- hourly average | N6: Monthly mean of daily averages | O6: Highest daily average
A7: Jan | B7: 200 | C7: 5.5 | D7: 45.5 | E7: 30 | F7: 5.5 | G7: 8 | J7: A1 | K7: Jan | L7: 5.5 | M7: 45.5 | N7: 5.5 | O7: 8
A8: Feb | B8: 200 | C8: 13.1 | D8: 105.6 | E8: 30 | F8: 13.2 | G8: 28.2 | K8: Feb | L8: 13.1 | M8: 105.6 | N8: 13.2 | O8: 28.2
A9: Mar | B9: 200 | C9: 9.1 | D9: 113.4 | E9: 30 | F9: 9.5 | G9: 17.9 | K9: Mar | L9: 9.1 | M9: 113.4 | N9: 9.5 | O9: 17.9 | Q9: Whole Installation table A5:G18:
A10: Apr | B10: 200 | C10: 6.1 | D10: 72.8 | E10: 30 | F10: 5.5 | G10: 10.5 | K10: Apr | L10: 6.1 | M10: 72.8 | N10: 5.5 | O10: 10.5 | Q10: Mean: for 1/2 hourly and daily periods calculate mean of values across all operational combustion lines for the month
A11: May | B11: 200 | C11: 4 | D11: 83.9 | E11: 30 | F11: 4.1 | G11: 13.7 | K11: May | L11: 4 | M11: 83.9 | N11: 4.1 | O11: 13.7
A12: Jun | B12: 200 | C12: 0.9 | D12: 8.9 | E12: 30 | F12: 0.8 | G12: 4.1 | K12: Jun | L12: 0.9 | M12: 8.9 | N12: 0.8 | O12: 4.1
A13: Jul | B13: 200 | C13: 14.8 | D13: 97 | E13: 30 | F13: 14.9 | G13: 24.6 | K13: Jul | L13: 14.8 | M13: 97 | N13: 14.9 | O13: 24.6 | Q13: Maximum: for 1/2 hourly and daily periods use the highest value across all operational combustion lines for the month
A14: Aug | B14: 200 | C14: 15.3 | D14: 94.8 | E14: 30 | F14: 15.3 | G14: 24.5 | K14: Aug | L14: 15.3 | M14: 94.8 | N14: 15.3 | O14: 24.5
A15: Sep | B15: 200 | C15: 9.1 | D15: 77.7 | E15: 30 | F15: 9 | G15: 15.4 | K15: Sep | L15: 9.1 | M15: 77.7 | N15: 9 | O15: 15.4
A16: Oct | B16: 200 | C16: 11.7 | D16: 111.1 | E16: 30 | F16: 11.9 | G16: 24.8 | K16: Oct | L16: 11.7 | M16: 111.1 | N16: 11.9 | O16: 24.8
A17: Nov | B17: 200 | C17: 6.5 | D17: 83.3 | E17: 30 | F17: 6.9 | G17: 19.1 | K17: Nov | L17: 6.5 | M17: 83.3 | N17: 6.9 | O17: 19.1
A18: Dec | B18: 200 | C18: 3 | D18: 29.4 | E18: 30 | F18: 3 | G18: 8.8 | K18: Dec | L18: 3 | M18: 29.4 | N18: 3 | O18: 8.8
K19: Annual | L19: =AVERAGE(L7:L18) -> 8.258333333 | M19: =MAX(M7:M18) -> 113.4 | N19: =AVERAGE(N7:N18) -> 8.3 | O19: =MAX(O7:O18) -> 28.2
J21: =+A5 -> 2025 | K21: mg/Nm3 | L21: Monthly mean of half-hourly averages | M21: Highest half- hourly average | N21: Monthly mean of daily averages | O21: Highest daily average
J22: A2 | K22: Jan
K23: Feb
K24: Mar
K25: Apr
K26: May
K27: Jun
K28: Jul
K29: Aug
K30: Sep
K31: Oct
K32: Nov
K33: Dec
K34: Annual | L34: =AVERAGE(L22:L33) ->  | M34: =MAX(M22:M33) -> 0 | N34: =AVERAGE(N22:N33) ->  | O34: =MAX(O22:O33) -> 0
J36: =+A5 -> 2025 | K36: mg/Nm3 | L36: Monthly mean of half-hourly averages | M36: Highest half- hourly average | N36: Monthly mean of daily averages | O36: Highest daily average
J37: A3 | K37: Jan
K38: Feb
K39: Mar
K40: Apr
K41: May
K42: Jun
K43: Jul
K44: Aug
K45: Sep
K46: Oct
K47: Nov
A48: Comments : | K48: Dec
K49: Annual | L49: =AVERAGE(L37:L48) ->  | M49: =MAX(M37:M48) -> 0 | N49: =AVERAGE(N37:N48) ->  | O49: =MAX(O37:O48) -> 0
J51: =+A5 -> 2025 | K51: mg/Nm3 | L51: Monthly mean of half-hourly averages | M51: Highest half- hourly average | N51: Monthly mean of daily averages | O51: Highest daily average
J52: A4 | K52: Jan
K53: Feb
K54: Mar
K55: Apr
K56: May
K57: Jun
K58: Jul
K59: Aug
K60: Sep
K61: Oct
K62: Nov
K63: Dec
K64: Annual | L64: =AVERAGE(L52:L63) ->  | M64: =MAX(M52:M63) -> 0 | N64: =AVERAGE(N52:N63) ->  | O64: =MAX(O52:O63) -> 0
J66: =+A5 -> 2025 | K66: mg/Nm3 | L66: Monthly mean of half-hourly averages | M66: Highest half- hourly average | N66: Monthly mean of daily averages | O66: Highest daily average
J67: A5 | K67: Jan
K68: Feb
K69: Mar
K70: Apr
K71: May
K72: Jun
K73: Jul
K74: Aug
K75: Sep
K76: Oct
K77: Nov
K78: Dec
K79: Annual | L79: =AVERAGE(L67:L78) ->  | M79: =MAX(M67:M78) -> 0 | N79: =AVERAGE(N67:N78) ->  | O79: =MAX(O67:O78) -> 0

Sheet NOx
A1: =+'Cover Page'!$B$29 -> Annual Performance Report 2025 | E1: =+'Cover Page'!$B$33 -> Bridgwater Resource Recovery Limited
A3: Monitoring of Oxides of Nitrogen emissions | D3: Whole Installation | G3: See Notes in Cell Q3 | J3: =+A3 -> Monitoring of Oxides of Nitrogen emissions | N3: Per Combustion Line | Q3: Notes:
Q4: User to add logic to complete Whole installation, Table A5:G18. From the data in Per Combustion Line, Table J6:O79, subject to No. of lines installed
A5: =+'Cover Page'!C39 -> 2025 | B5: 1/2 Hourly Reference Periods | E5: Daily Reference Periods
A6: mg/Nm3 | B6: 1/2 hourly NOx ELV | C6: Monthly mean of half-hourly averages | D6: Highest half- hourly average | E6: Daily NOx ELV | F6: Monthly mean of daily averages | G6: Highest daily average | J6: =+A5 -> 2025 | K6: mg/Nm3 | L6: Monthly mean of half-hourly averages | M6: Highest half- hourly average | N6: Monthly mean of daily averages | O6: Highest daily average
A7: Jan | B7: 400 | C7: 75.8 | D7: 170.5 | E7: 120 | F7: 79.6 | G7: 86.2 | J7: A1 | K7: Jan | L7: 75.8 | M7: 170.5 | N7: 79.6 | O7: 86.2
A8: Feb | B8: 400 | C8: 91.4 | D8: 166.6 | E8: 120 | F8: 92.1 | G8: 108.2 | K8: Feb | L8: 91.4 | M8: 166.6 | N8: 92.1 | O8: 108.2
A9: Mar | B9: 400 | C9: 93.5 | D9: 184.8 | E9: 120 | F9: 96.2 | G9: 104 | K9: Mar | L9: 93.5 | M9: 184.8 | N9: 96.2 | O9: 104 | Q9: Whole Installation table A5:G18:
A10: Apr | B10: 400 | C10: 96.8 | D10: 172.2 | E10: 120 | F10: 96.7 | G10: 107 | K10: Apr | L10: 96.8 | M10: 172.2 | N10: 96.7 | O10: 107 | Q10: Mean: for 1/2 hourly and daily periods calculate mean of values across all operational combustion lines for the month
A11: May | B11: 400 | C11: 101 | D11: 184.7 | E11: 120 | F11: 102.1 | G11: 110.3 | K11: May | L11: 101 | M11: 184.7 | N11: 102.1 | O11: 110.3
A12: Jun | B12: 400 | C12: 96 | D12: 146.6 | E12: 120 | F12: 96 | G12: 108.3 | K12: Jun | L12: 96 | M12: 146.6 | N12: 96 | O12: 108.3
A13: Jul | B13: 400 | C13: 100.9 | D13: 167.4 | E13: 120 | F13: 100.8 | G13: 108.9 | K13: Jul | L13: 100.9 | M13: 167.4 | N13: 100.8 | O13: 108.9 | Q13: Maximum: for 1/2 hourly and daily periods use the highest value across all operational combustion lines for the month
A14: Aug | B14: 400 | C14: 99.3 | D14: 176.4 | E14: 120 | F14: 98.7 | G14: 113.2 | K14: Aug | L14: 99.3 | M14: 176.4 | N14: 98.7 | O14: 113.2
A15: Sep | B15: 400 | C15: 96.3 | D15: 157.1 | E15: 120 | F15: 96.9 | G15: 114.4 | K15: Sep | L15: 96.3 | M15: 157.1 | N15: 96.9 | O15: 114.4
A16: Oct | B16: 400 | C16: 98.5 | D16: 163.5 | E16: 120 | F16: 100.2 | G16: 114.1 | K16: Oct | L16: 98.5 | M16: 163.5 | N16: 100.2 | O16: 114.1
A17: Nov | B17: 400 | C17: 100.2 | D17: 189.7 | E17: 120 | F17: 101.8 | G17: 112.6 | K17: Nov | L17: 100.2 | M17: 189.7 | N17: 101.8 | O17: 112.6
A18: Dec | B18: 400 | C18: 98 | D18: 197.2 | E18: 120 | F18: 98.1 | G18: 110.4 | K18: Dec | L18: 98 | M18: 197.2 | N18: 98.1 | O18: 110.4
K19: Annual | L19: =AVERAGE(L7:L18) -> 95.64166667 | M19: =MAX(M7:M18) -> 197.2 | N19: =AVERAGE(N7:N18) -> 96.6 | O19: =MAX(O7:O18) -> 114.4
J21: =+A5 -> 2025 | K21: mg/Nm3 | L21: Monthly mean of half-hourly averages | M21: Highest half- hourly average | N21: Monthly mean of daily averages | O21: Highest daily average
J22: A2 | K22: Jan
K23: Feb
K24: Mar
K25: Apr
K26: May
K27: Jun
K28: Jul
K29: Aug
K30: Sep
K31: Oct
K32: Nov
K33: Dec
K34: Annual | L34: =AVERAGE(L22:L33) ->  | M34: =MAX(M22:M33) -> 0 | N34: =AVERAGE(N22:N33) ->  | O34: =MAX(O22:O33) -> 0
J36: =+A5 -> 2025 | K36: mg/Nm3 | L36: Monthly mean of half-hourly averages | M36: Highest half- hourly average | N36: Monthly mean of daily averages | O36: Highest daily average
J37: A3 | K37: Jan
K38: Feb
K39: Mar
K40: Apr
K41: May
K42: Jun
K43: Jul
K44: Aug
K45: Sep
K46: Oct
K47: Nov
A48: Comments : | K48: Dec
K49: Annual | L49: =AVERAGE(L37:L48) ->  | M49: =MAX(M37:M48) -> 0 | N49: =AVERAGE(N37:N48) ->  | O49: =MAX(O37:O48) -> 0
J51: =+A5 -> 2025 | K51: mg/Nm3 | L51: Monthly mean of half-hourly averages | M51: Highest half- hourly average | N51: Monthly mean of daily averages | O51: Highest daily average
J52: A4 | K52: Jan
K53: Feb
K54: Mar
K55: Apr
K56: May
K57: Jun
K58: Jul
K59: Aug
K60: Sep
K61: Oct
K62: Nov
K63: Dec
K64: Annual | L64: =AVERAGE(L52:L63) ->  | M64: =MAX(M52:M63) -> 0 | N64: =AVERAGE(N52:N63) ->  | O64: =MAX(O52:O63) -> 0
J66: =+A5 -> 2025 | K66: mg/Nm3 | L66: Monthly mean of half-hourly averages | M66: Highest half- hourly average | N66: Monthly mean of daily averages | O66: Highest daily average
J67: A5 | K67: Jan
K68: Feb
K69: Mar
K70: Apr
K71: May
K72: Jun
K73: Jul
K74: Aug
K75: Sep
K76: Oct
K77: Nov
K78: Dec
K79: Annual | L79: =AVERAGE(L67:L78) ->  | M79: =MAX(M67:M78) -> 0 | N79: =AVERAGE(N67:N78) ->  | O79: =MAX(O67:O78) -> 0

Sheet TOC
A1: =+'Cover Page'!$B$29 -> Annual Performance Report 2025 | E1: =+'Cover Page'!$B$33 -> Bridgwater Resource Recovery Limited
A3: Monitoring of Total organic carbon emissions | D3: Whole Installation | G3: See Notes in Cell Q3 | J3: =+A3 -> Monitoring of Total organic carbon emissions | N3: Per Combustion Line | Q3: Notes:
Q4: User to add logic to complete Whole installation, Table A5:G18. From the data in Per Combustion Line, Table J6:O79, subject to No. of lines installed
A5: =+'Cover Page'!C39 -> 2025 | B5: 1/2 Hourly Reference Periods | E5: Daily Reference Periods
A6: mg/Nm3 | B6: 1/2 hourly TOC ELV | C6: Monthly mean of half-hourly averages | D6: Highest half- hourly average | E6: Daily TOC ELV | F6: Monthly mean of daily averages | G6: Highest daily average | J6: =+A5 -> 2025 | K6: mg/Nm3 | L6: Monthly mean of half-hourly averages | M6: Highest half- hourly average | N6: Monthly mean of daily averages | O6: Highest daily average
A7: Jan | B7: 20 | C7: 0.4 | D7: 3.1 | E7: 10 | F7: 0.1 | G7: 0.4 | J7: A1 | K7: Jan | L7: 0.4 | M7: 3.1 | N7: 0.1 | O7: 0.4
A8: Feb | B8: 20 | C8: 0.4 | D8: 2.9 | E8: 10 | F8: 0.3 | G8: 0.8 | K8: Feb | L8: 0.4 | M8: 2.9 | N8: 0.3 | O8: 0.8
A9: Mar | B9: 20 | C9: 0.3 | D9: 1.1 | E9: 10 | F9: 0.2 | G9: 0.4 | K9: Mar | L9: 0.3 | M9: 1.1 | N9: 0.2 | O9: 0.4 | Q9: Whole Installation table A5:G18:
A10: Apr | B10: 20 | C10: 0.3 | D10: 2 | E10: 10 | F10: 0.2 | G10: 0.4 | K10: Apr | L10: 0.3 | M10: 2 | N10: 0.2 | O10: 0.4 | Q10: Mean: for 1/2 hourly and daily periods calculate mean of values across all operational combustion lines for the month
A11: May | B11: 20 | C11: 0.2 | D11: 6.1 | E11: 10 | F11: 0.2 | G11: 0.4 | K11: May | L11: 0.2 | M11: 6.1 | N11: 0.2 | O11: 0.4
A12: Jun | B12: 20 | C12: 0.2 | D12: 0.9 | E12: 10 | F12: 0.1 | G12: 0.3 | K12: Jun | L12: 0.2 | M12: 0.9 | N12: 0.1 | O12: 0.3
A13: Jul | B13: 20 | C13: 0.4 | D13: 1.7 | E13: 10 | F13: 0.3 | G13: 0.9 | K13: Jul | L13: 0.4 | M13: 1.7 | N13: 0.3 | O13: 0.9 | Q13: Maximum: for 1/2 hourly and daily periods use the highest value across all operational combustion lines for the month
A14: Aug | B14: 20 | C14: 0.2 | D14: 1.8 | E14: 10 | F14: 0.2 | G14: 0.3 | K14: Aug | L14: 0.2 | M14: 1.8 | N14: 0.2 | O14: 0.3
A15: Sep | B15: 20 | C15: 0.2 | D15: 2.7 | E15: 10 | F15: 0.1 | G15: 0.2 | K15: Sep | L15: 0.2 | M15: 2.7 | N15: 0.1 | O15: 0.2
A16: Oct | B16: 20 | C16: 0.3 | D16: 6 | E16: 10 | F16: 0.2 | G16: 0.4 | K16: Oct | L16: 0.3 | M16: 6 | N16: 0.2 | O16: 0.4
A17: Nov | B17: 20 | C17: 0.3 | D17: 0.8 | E17: 10 | F17: 0.2 | G17: 0.5 | K17: Nov | L17: 0.3 | M17: 0.8 | N17: 0.2 | O17: 0.5
A18: Dec | B18: 20 | C18: 0.3 | D18: 0.6 | E18: 10 | F18: 0.3 | G18: 0.3 | K18: Dec | L18: 0.3 | M18: 0.6 | N18: 0.3 | O18: 0.3
K19: Annual | L19: =AVERAGE(L7:L18) -> 0.2916666667 | M19: =MAX(M7:M18) -> 6.1 | N19: =AVERAGE(N7:N18) -> 0.2 | O19: =MAX(O7:O18) -> 0.9
J21: =+A5 -> 2025 | K21: mg/Nm3 | L21: Monthly mean of half-hourly averages | M21: Highest half- hourly average | N21: Monthly mean of daily averages | O21: Highest daily average
J22: A2 | K22: Jan
K23: Feb
K24: Mar
K25: Apr
K26: May
K27: Jun
K28: Jul
K29: Aug
K30: Sep
K31: Oct
K32: Nov
K33: Dec
K34: Annual | L34: =AVERAGE(L22:L33) ->  | M34: =MAX(M22:M33) -> 0 | N34: =AVERAGE(N22:N33) ->  | O34: =MAX(O22:O33) -> 0
J36: =+A5 -> 2025 | K36: mg/Nm3 | L36: Monthly mean of half-hourly averages | M36: Highest half- hourly average | N36: Monthly mean of daily averages | O36: Highest daily average
J37: A3 | K37: Jan
K38: Feb
K39: Mar
K40: Apr
K41: May
K42: Jun
K43: Jul
K44: Aug
K45: Sep
K46: Oct
K47: Nov
A48: Comments : | K48: Dec
K49: Annual | L49: =AVERAGE(L37:L48) ->  | M49: =MAX(M37:M48) -> 0 | N49: =AVERAGE(N37:N48) ->  | O49: =MAX(O37:O48) -> 0
J51: =+A5 -> 2025 | K51: mg/Nm3 | L51: Monthly mean of half-hourly averages | M51: Highest half- hourly average | N51: Monthly mean of daily averages | O51: Highest daily average
J52: A4 | K52: Jan
K53: Feb
K54: Mar
K55: Apr
K56: May
K57: Jun
K58: Jul
K59: Aug
K60: Sep
K61: Oct
K62: Nov
K63: Dec
K64: Annual | L64: =AVERAGE(L52:L63) ->  | M64: =MAX(M52:M63) -> 0 | N64: =AVERAGE(N52:N63) ->  | O64: =MAX(O52:O63) -> 0
J66: =+A5 -> 2025 | K66: mg/Nm3 | L66: Monthly mean of half-hourly averages | M66: Highest half- hourly average | N66: Monthly mean of daily averages | O66: Highest daily average
J67: A5 | K67: Jan
K68: Feb
K69: Mar
K70: Apr
K71: May
K72: Jun
K73: Jul
K74: Aug
K75: Sep
K76: Oct
K77: Nov
K78: Dec
K79: Annual | L79: =AVERAGE(L67:L78) ->  | M79: =MAX(M67:M78) -> 0 | N79: =AVERAGE(N67:N78) ->  | O79: =MAX(O67:O78) -> 0

Sheet Particulates
A1: =+'Cover Page'!$B$29 -> Annual Performance Report 2025 | E1: =+'Cover Page'!$B$33 -> Bridgwater Resource Recovery Limited
A3: Monitoring of Particulate matter emissions | D3: Whole Installation | G3: See Notes in Cell Q3 | J3: =+A3 -> Monitoring of Particulate matter emissions | N3: Per Combustion Line | Q3: Notes:
A5: =+'Cover Page'!C39 -> 2025 | B5: 1/2 Hourly Reference Periods | E5: Daily Reference Periods | Q5: User to add logic to complete Whole installation, Table A5:G18. From the data in Per Combustion Line, Table J6:O79, subject to No. of lines installed
A6: mg/Nm3 | B6: 1/2 hourly PM ELV | C6: Monthly mean of half-hourly averages | D6: Highest half- hourly average | E6: Daily PM ELV | F6: Monthly mean of daily averages | G6: Highest daily average | J6: =+A5 -> 2025 | K6: mg/Nm3 | L6: Monthly mean of half-hourly averages | M6: Highest half- hourly average | N6: Monthly mean of daily averages | O6: Highest daily average
A7: Jan | B7: 30 | C7: 0.09 | D7: 0.23 | E7: 5 | F7: -0.16 | G7: 0.1 | J7: A1 | K7: Jan | L7: 0.09 | M7: 0.23 | N7: -0.16 | O7: 0.1
A8: Feb | B8: 30 | C8: 0.08 | D8: 0.22 | E8: 5 | F8: 0.03 | G8: 0.1 | K8: Feb | L8: 0.08 | M8: 0.22 | N8: 0.03 | O8: 0.1
A9: Mar | B9: 30 | C9: 0.08 | D9: 0.4 | E9: 5 | F9: 0.02 | G9: 0.11 | K9: Mar | L9: 0.08 | M9: 0.4 | N9: 0.02 | O9: 0.11
A10: Apr | B10: 30 | C10: 0.08 | D10: 2.17 | E10: 5 | F10: 0.02 | G10: 0.14 | K10: Apr | L10: 0.08 | M10: 2.17 | N10: 0.02 | O10: 0.14 | Q10: Whole Installation table A5:G18:
A11: May | B11: 30 | C11: 0.08 | D11: 0.27 | E11: 5 | F11: 0.04 | G11: 0.12 | K11: May | L11: 0.08 | M11: 0.27 | N11: 0.04 | O11: 0.12 | Q11: Mean: for 1/2 hourly and daily periods calculate mean of values across all operational combustion lines for the month
A12: Jun | B12: 30 | C12: 0.09 | D12: 1.58 | E12: 5 | F12: 0.02 | G12: 0.18 | K12: Jun | L12: 0.09 | M12: 1.58 | N12: 0.02 | O12: 0.18
A13: Jul | B13: 30 | C13: 0.08 | D13: 0.96 | E13: 5 | F13: 0 | G13: 0.11 | K13: Jul | L13: 0.08 | M13: 0.96 | N13: 0 | O13: 0.11
A14: Aug | B14: 30 | C14: 0.11 | D14: 1.15 | E14: 5 | F14: 0.08 | G14: 0.2 | K14: Aug | L14: 0.11 | M14: 1.15 | N14: 0.08 | O14: 0.2 | Q14: Maximum: for 1/2 hourly and daily periods use the highest value across all operational combustion lines for the month
A15: Sep | B15: 30 | C15: 0.15 | D15: 1.57 | E15: 5 | F15: 0.11 | G15: 0.23 | K15: Sep | L15: 0.15 | M15: 1.57 | N15: 0.11 | O15: 0.23
A16: Oct | B16: 30 | C16: 0.14 | D16: 0.89 | E16: 5 | F16: 0.08 | G16: 0.18 | K16: Oct | L16: 0.14 | M16: 0.89 | N16: 0.08 | O16: 0.18
A17: Nov | B17: 30 | C17: 0.13 | D17: 0.59 | E17: 5 | F17: 0.08 | G17: 0.19 | K17: Nov | L17: 0.13 | M17: 0.59 | N17: 0.08 | O17: 0.19
A18: Dec | B18: 30 | C18: 0.14 | D18: 0.67 | E18: 5 | F18: 0.1 | G18: 0.2 | K18: Dec | L18: 0.14 | M18: 0.67 | N18: 0.1 | O18: 0.2
K19: Annual | L19: =AVERAGE(L7:L18) -> 0.1041666667 | M19: =MAX(M7:M18) -> 2.17 | N19: =AVERAGE(N7:N18) -> 0.035 | O19: =MAX(O7:O18) -> 0.23
J21: =+A5 -> 2025 | K21: mg/Nm3 | L21: Monthly mean of half-hourly averages | M21: Highest half- hourly average | N21: Monthly mean of daily averages | O21: Highest daily average
J22: A2 | K22: Jan
K23: Feb
K24: Mar
K25: Apr
K26: May
K27: Jun
K28: Jul
K29: Aug
K30: Sep
K31: Oct
K32: Nov
K33: Dec
K34: Annual | L34: =AVERAGE(L22:L33) ->  | M34: =MAX(M22:M33) -> 0 | N34: =AVERAGE(N22:N33) ->  | O34: =MAX(O22:O33) -> 0
J36: =+A5 -> 2025 | K36: mg/Nm3 | L36: Monthly mean of half-hourly averages | M36: Highest half- hourly average | N36: Monthly mean of daily averages | O36: Highest daily average
J37: A3 | K37: Jan
K38: Feb
K39: Mar
K40: Apr
K41: May
K42: Jun
K43: Jul
K44: Aug
K45: Sep
K46: Oct
K47: Nov
A48: Comments : | K48: Dec
K49: Annual | L49: =AVERAGE(L37:L48) ->  | M49: =MAX(M37:M48) -> 0 | N49: =AVERAGE(N37:N48) ->  | O49: =MAX(O37:O48) -> 0
J51: =+A5 -> 2025 | K51: mg/Nm3 | L51: Monthly mean of half-hourly averages | M51: Highest half- hourly average | N51: Monthly mean of daily averages | O51: Highest daily average
J52: A4 | K52: Jan
K53: Feb
K54: Mar
K55: Apr
K56: May
K57: Jun
K58: Jul
K59: Aug
K60: Sep
K61: Oct
K62: Nov
K63: Dec
K64: Annual | L64: =AVERAGE(L52:L63) ->  | M64: =MAX(M52:M63) -> 0 | N64: =AVERAGE(N52:N63) ->  | O64: =MAX(O52:O63) -> 0
J66: =+A5 -> 2025 | K66: mg/Nm3 | L66: Monthly mean of half-hourly averages | M66: Highest half- hourly average | N66: Monthly mean of daily averages | O66: Highest daily average
J67: A5 | K67: Jan
K68: Feb
K69: Mar
K70: Apr
K71: May
K72: Jun
K73: Jul
K74: Aug
K75: Sep
K76: Oct
K77: Nov
K78: Dec
K79: Annual | L79: =AVERAGE(L67:L78) ->  | M79: =MAX(M67:M78) -> 0 | N79: =AVERAGE(N67:N78) ->  | O79: =MAX(O67:O78) -> 0

Sheet CO 0.5 hourly
A1: =+'Cover Page'!$B$29 -> Annual Performance Report 2025 | E1: =+'Cover Page'!$B$33 -> Bridgwater Resource Recovery Limited
A3: Monitoring of Carbon Monoxide (half hourly) | D3: Whole Installation | G3: See Notes in Cell Q3 | J3: =+A3 -> Monitoring of Carbon Monoxide (half hourly) | N3: Per Combustion Line | Q3: Notes:
A5: Please complete this tab for your plant if you have 1/2 hourly CO ELVs; otherwise, leave it blank and complete the CO 95% 10 min tab
Q7: User to add logic to complete Whole installation, Table A5:G18. From the data in Per Combustion Line, Table J6:O79, subject to No. of lines installed
A8: =+'Cover Page'!C39 -> 2025 | B8: 1/2 Hourly Reference Periods | E8: Daily Reference Periods
A9: mg/Nm3 | B9: 1/2 hourly CO ELV | C9: Monthly mean of half-hourly averages | D9: Highest half- hourly average | E9: Daily CO ELV | F9: Monthly mean of daily averages | G9: Highest daily average | J9: =+A8 -> 2025 | K9: mg/Nm3 | L9: Monthly mean of half-hourly averages | M9: Highest half- hourly average | N9: Monthly mean of daily averages | O9: Highest daily average
A10: Jan | B10: 100 | C10: 16.3 | D10: 105.9 | E10: 50 | F10: 12.9 | G10: 16.1 | J10: A1 | K10: Jan | L10: 16.3 | M10: 105.9 | N10: 12.9 | O10: 16.1
A11: Feb | B11: =+B10 -> 100 | C11: 4.4 | D11: 108.3 | E11: =+E10 -> 50 | F11: 4 | G11: 8.9 | K11: Feb | L11: 4.4 | M11: 108.3 | N11: 4 | O11: 8.9
A12: Mar | B12: =+B11 -> 100 | C12: 3.2 | D12: 107.3 | E12: =+E11 -> 50 | F12: 2.8 | G12: 4.4 | K12: Mar | L12: 3.2 | M12: 107.3 | N12: 2.8 | O12: 4.4 | Q12: Whole Installation table A5:G18:
A13: Apr | B13: 100 | C13: 2.9 | D13: 68.8 | E13: 50 | F13: 2.6 | G13: 7.2 | K13: Apr | L13: 2.9 | M13: 68.8 | N13: 2.6 | O13: 7.2 | Q13: Mean: for 1/2 hourly and daily periods calculate mean of values across all operational combustion lines for the month
A14: May | B14: 100 | C14: 2.4 | D14: 160.4 | E14: 50 | F14: 2.2 | G14: 5.9 | K14: May | L14: 2.4 | M14: 160.4 | N14: 2.2 | O14: 5.9
A15: Jun | B15: 100 | C15: 2.5 | D15: 66.3 | E15: 50 | F15: 2.3 | G15: 5.4 | K15: Jun | L15: 2.5 | M15: 66.3 | N15: 2.3 | O15: 5.4
A16: Jul | B16: 100 | C16: 16 | D16: 203.6 | E16: 50 | F16: 15.9 | G16: 38.4 | K16: Jul | L16: 16 | M16: 203.6 | N16: 15.9 | O16: 38.4 | Q16: Maximum: for 1/2 hourly and daily periods use the highest value across all operational combustion lines for the month
A17: Aug | B17: 100 | C17: 3.8 | D17: 102.2 | E17: 50 | F17: 3.7 | G17: 7.6 | K17: Aug | L17: 3.8 | M17: 102.2 | N17: 3.7 | O17: 7.6
A18: Sep | B18: 100 | C18: 4.6 | D18: 92 | E18: 50 | F18: 3.9 | G18: 8.8 | K18: Sep | L18: 4.6 | M18: 92 | N18: 3.9 | O18: 8.8
A19: Oct | B19: 100 | C19: 4.6 | D19: 100.3 | E19: 50 | F19: 4.2 | G19: 7.2 | K19: Oct | L19: 4.6 | M19: 100.3 | N19: 4.2 | O19: 7.2
A20: Nov | B20: 100 | C20: 7.8 | D20: 91.7 | E20: 50 | F20: 7.2 | G20: 12.2 | K20: Nov | L20: 7.8 | M20: 91.7 | N20: 7.2 | O20: 12.2
A21: Dec | B21: 100 | C21: 6.2 | D21: 66 | E21: 50 | F21: 6.2 | G21: 9.6 | K21: Dec | L21: 6.2 | M21: 66 | N21: 6.2 | O21: 9.6
K22: Annual | L22: =AVERAGE(L10:L21) -> 6.225 | M22: =MAX(M10:M21) -> 203.6 | N22: =AVERAGE(N10:N21) -> 5.658333333 | O22: =MAX(O10:O21) -> 38.4
J24: =+A8 -> 2025 | K24: mg/Nm3 | L24: Monthly mean of half-hourly averages | M24: Highest half- hourly average | N24: Monthly mean of daily averages | O24: Highest daily average
J25: A2 | K25: Jan
K26: Feb
K27: Mar
K28: Apr
K29: May
K30: Jun
K31: Jul
K32: Aug
K33: Sep
K34: Oct
K35: Nov
K36: Dec
K37: Annual | L37: =AVERAGE(L25:L36) ->  | M37: =MAX(M25:M36) -> 0 | N37: =AVERAGE(N25:N36) ->  | O37: =MAX(O25:O36) -> 0
J39: =+A8 -> 2025 | K39: mg/Nm3 | L39: Monthly mean of half-hourly averages | M39: Highest half- hourly average | N39: Monthly mean of daily averages | O39: Highest daily average
J40: A3 | K40: Jan
K41: Feb
K42: Mar
K43: Apr
K44: May
K45: Jun
K46: Jul
K47: Aug
K48: Sep
K49: Oct
K50: Nov
A51: Comments : | K51: Dec
K52: Annual | L52: =AVERAGE(L40:L51) ->  | M52: =MAX(M40:M51) -> 0 | N52: =AVERAGE(N40:N51) ->  | O52: =MAX(O40:O51) -> 0
J54: =+A8 -> 2025 | K54: mg/Nm3 | L54: Monthly mean of half-hourly averages | M54: Highest half- hourly average | N54: Monthly mean of daily averages | O54: Highest daily average
J55: A4 | K55: Jan
K56: Feb
K57: Mar
K58: Apr
K59: May
K60: Jun
K61: Jul
K62: Aug
K63: Sep
K64: Oct
K65: Nov
K66: Dec
K67: Annual | L67: =AVERAGE(L55:L66) ->  | M67: =MAX(M55:M66) -> 0 | N67: =AVERAGE(N55:N66) ->  | O67: =MAX(O55:O66) -> 0
J69: =+A8 -> 2025 | K69: mg/Nm3 | L69: Monthly mean of half-hourly averages | M69: Highest half- hourly average | N69: Monthly mean of daily averages | O69: Highest daily average
J70: A5 | K70: Jan
K71: Feb
K72: Mar
K73: Apr
K74: May
K75: Jun
K76: Jul
K77: Aug
K78: Sep
K79: Oct
K80: Nov
K81: Dec
K82: Annual | L82: =AVERAGE(L70:L81) ->  | M82: =MAX(M70:M81) -> 0 | N82: =AVERAGE(N70:N81) ->  | O82: =MAX(O70:O81) -> 0

Sheet CO 95% 10 min
A1: =+'Cover Page'!$B$29 -> Annual Performance Report 2025 | E1: =+'Cover Page'!$B$33 -> Bridgwater Resource Recovery Limited
A3: Monitoring of Carbon Monoxide (10-minute avg) | E3: Whole Installation | H3: See Notes in Cell S3 | J3: =+A3 -> Monitoring of Carbon Monoxide (10-minute avg) | O3: Per Combustion Line | Q3: Notes: | S3: Notes:
A5: Please complete this tab for your plant if you have 10-minute average CO ELVs; otherwise, leave it blank and complete the CO 0.5 hourly tab
S7: User to add logic to complete Whole installation, Table A5:H18. From the data in Per Combustion Line, Table K6:Q79, subject to No. of lines installed
A8: =+'Cover Page'!C39 -> 2025 | B8: 10-minute Reference Periods | F8: Daily Reference Periods
A9: mg/Nm3 | B9: 95%ile 10-min avg CO ELV | C9: Highest daily 95%ile 10-min average | D9: Monthly mean of 10-min averages | E9: Highest 10-min average | F9: Daily CO ELV | G9: Monthly mean of daily averages | H9: Highest daily average | K9: =+A8 -> 2025 | L9: mg/Nm3 | M9: Highest daily 95%ile 10-min average | N9: Monthly mean of 10-min averages | O9: Highest 10-min average | P9: Monthly mean of daily averages | Q9: Highest daily average
A10: Jan | B10: 150 | F10: 50 | K10: A1 | L10: Jan
A11: Feb | B11: =+B10 -> 150 | F11: =+F10 -> 50 | L11: Feb
A12: Mar | B12: =+B11 -> 150 | F12: =+F11 -> 50 | L12: Mar | S12: Whole Installation table A5:H18:
A13: Apr | B13: 150 | F13: 50 | L13: Apr | S13: Mean: for 10-min and daily periods use average of all operational combustion lines.
A14: May | B14: 150 | F14: 50 | L14: May
A15: Jun | B15: 150 | F15: 50 | L15: Jun
A16: Jul | B16: 150 | F16: 50 | L16: Jul | S16: Maximum: for 10-min and daily periods use the highest of all operational combustion lines in any month.
A17: Aug | B17: 150 | F17: 50 | L17: Aug
A18: Sep | B18: 150 | F18: 50 | L18: Sep
A19: Oct | B19: 150 | F19: 50 | L19: Oct
A20: Nov | B20: 150 | F20: 50 | L20: Nov
A21: Dec | B21: 150 | F21: 50 | L21: Dec
L22: Annual | M22: =AVERAGE(M10:M21) ->  | O22: =MAX(O10:O21) -> 0 | P22: =AVERAGE(P10:P21) ->  | Q22: =MAX(Q10:Q21) -> 0
K24: =+A8 -> 2025 | L24: mg/Nm3 | M24: Highest daily 95%ile 10-min average | N24: Monthly mean of 10-min averages | O24: Highest 10-min average | P24: Monthly mean of daily averages | Q24: Highest daily average
K25: A2 | L25: Jan
L26: Feb
L27: Mar
L28: Apr
L29: May
L30: Jun
L31: Jul
L32: Aug
L33: Sep
L34: Oct
L35: Nov
L36: Dec
L37: Annual | M37: =AVERAGE(M25:M36) ->  | O37: =MAX(O25:O36) -> 0 | P37: =AVERAGE(P25:P36) ->  | Q37: =MAX(Q25:Q36) -> 0
K39: =+A8 -> 2025 | L39: mg/Nm3 | M39: Highest daily 95%ile 10-min average | N39: Monthly mean of 10-min averages | O39: Highest 10-min average | P39: Monthly mean of daily averages | Q39: Highest daily average
K40: A3 | L40: Jan
L41: Feb
L42: Mar
L43: Apr
L44: May
L45: Jun
L46: Jul
L47: Aug
L48: Sep
L49: Oct
L50: Nov
A51: Comments : | L51: Dec
A52: Environment Agency explanatory note: The 10-minute average ELV is based on the “95th percentile”. In this case this means that 95% of the 10 minute averages in the relevant 24-hour period (i.e. 137) must be below 150 mg/Nm3, and 5% (i.e. 7) are allowed to be any value above 150 mg/Nm3. Whilst we expect operators to minimise CO emissions at all times, it is perfectly acceptable for the value of the maximum 10-minute average to be above 150 mg/Nm3, provided the 95th percentile ELV has been met for that period. | L52: Annual | M52: =AVERAGE(M40:M51) ->  | O52: =MAX(O40:O51) -> 0 | P52: =AVERAGE(P40:P51) ->  | Q52: =MAX(Q40:Q51) -> 0
K54: =+A8 -> 2025 | L54: mg/Nm3 | M54: Highest daily 95%ile 10-min average | N54: Monthly mean of 10-min averages | O54: Highest 10-min average | P54: Monthly mean of daily averages | Q54: Highest daily average
K55: A4 | L55: Jan
L56: Feb
L57: Mar
L58: Apr
L59: May
L60: Jun
L61: Jul
L62: Aug
L63: Sep
L64: Oct
L65: Nov
L66: Dec
L67: Annual | M67: =AVERAGE(M55:M66) ->  | O67: =MAX(O55:O66) -> 0 | P67: =AVERAGE(P55:P66) ->  | Q67: =MAX(Q55:Q66) -> 0
K69: =+A8 -> 2025 | L69: mg/Nm3 | M69: 95%ile 10-min avg maximum | N69: Monthly CO 10-min avg mean | O69: 10-min avg maximum | P69: Monthly daily mean | Q69: Monthly daily maximum
K70: A5 | L70: Jan
L71: Feb
L72: Mar
L73: Apr
L74: May
L75: Jun
L76: Jul
L77: Aug
L78: Sep
L79: Oct
L80: Nov
L81: Dec
L82: Annual | M82: =AVERAGE(M70:M81) ->  | O82: =MAX(O70:O81) -> 0 | P82: =AVERAGE(P70:P81) ->  | Q82: =MAX(Q70:Q81) -> 0

Sheet NH3
A1: =+'Cover Page'!$B$29 -> Annual Performance Report 2025 | E1: =+'Cover Page'!$B$33 -> Bridgwater Resource Recovery Limited
A3: Monitoring of Ammnonia emissions | D3: Whole Installation | G3: See Notes in Cell Q3 | J3: =+A3 -> Monitoring of Ammnonia emissions | N3: Per Combustion Line | Q3: Notes:
Q4: User to add logic to complete Whole installation, Table A5:G18. From the data in Per Combustion Line, Table J6:O79, subject to No. of lines installed
A5: =+'Cover Page'!C39 -> 2025 | B5: 1/2 Hourly Reference Periods | E5: Daily Reference Periods
A6: mg/Nm3 | B6: 1/2 hourly NH3 ELV | C6: Monthly mean of half-hourly averages | D6: Highest half- hourly average | E6: Daily NH3 ELV | F6: Monthly mean of daily averages | G6: Highest daily average | J6: =+A5 -> 2025 | K6: mg/Nm3 | L6: Monthly mean of half-hourly averages | M6: Highest half- hourly average | N6: Monthly mean of daily averages | O6: Highest daily average
A7: Jan | B7: None | C7: 4.4 | D7: 56.3 | E7: 10 | F7: 1.5 | G7: 2.4 | J7: A1 | K7: Jan | L7: 4.4 | M7: 56.3 | N7: 1.5 | O7: 2.4
A8: Feb | B8: =+B7 -> None | C8: 0.8 | D8: 7.5 | E8: 10 | F8: 0.6 | G8: 1.3 | K8: Feb | L8: 0.8 | M8: 7.5 | N8: 0.6 | O8: 1.3
A9: Mar | B9: =+B8 -> None | C9: 1.2 | D9: 16.6 | E9: 10 | F9: 1.1 | G9: 3.6 | K9: Mar | L9: 1.2 | M9: 16.6 | N9: 1.1 | O9: 3.6 | Q9: Whole Installation table A5:G18:
A10: Apr | B10: None | C10: 0.9 | D10: 15 | E10: 10 | F10: 0.8 | G10: 3.3 | K10: Apr | L10: 0.9 | M10: 15 | N10: 0.8 | O10: 3.3 | Q10: Mean: for 1/2 hourly and daily periods calculate mean of values across all operational combustion lines for the month
A11: May | B11: None | C11: 1.1 | D11: 33.3 | E11: 10 | F11: 1 | G11: 4.5 | K11: May | L11: 1.1 | M11: 33.3 | N11: 1 | O11: 4.5
A12: Jun | B12: None | C12: 1.1 | D12: 13.7 | E12: 10 | F12: 1 | G12: 5.1 | K12: Jun | L12: 1.1 | M12: 13.7 | N12: 1 | O12: 5.1
A13: Jul | B13: None | C13: 1.9 | D13: 14.1 | E13: 10 | F13: 1.9 | G13: 3.2 | K13: Jul | L13: 1.9 | M13: 14.1 | N13: 1.9 | O13: 3.2 | Q13: Maximum: for 1/2 hourly and daily periods use the highest value across all operational combustion lines for the month
A14: Aug | B14: None | C14: 1.7 | D14: 14.9 | E14: 10 | F14: 1.7 | G14: 3 | K14: Aug | L14: 1.7 | M14: 14.9 | N14: 1.7 | O14: 3
A15: Sep | B15: None | C15: 2.8 | D15: 31 | E15: 10 | F15: 2.8 | G15: 7.4 | K15: Sep | L15: 2.8 | M15: 31 | N15: 2.8 | O15: 7.4
A16: Oct | B16: None | C16: 2.3 | D16: 32.4 | E16: 10 | F16: 2.2 | G16: 5.5 | K16: Oct | L16: 2.3 | M16: 32.4 | N16: 2.2 | O16: 5.5
A17: Nov | B17: None | C17: 4.9 | D17: 76.4 | E17: 10 | F17: 4.1 | G17: 10.3 | K17: Nov | L17: 4.9 | M17: 76.4 | N17: 4.1 | O17: 10.3
A18: Dec | B18: None | C18: 3.7 | D18: 41.2 | E18: 10 | F18: 3.7 | G18: 7.2 | K18: Dec | L18: 3.7 | M18: 41.2 | N18: 3.7 | O18: 7.2
K19: Annual | L19: =AVERAGE(L7:L18) -> 2.233333333 | M19: =MAX(M7:M18) -> 76.4 | N19: =AVERAGE(N7:N18) -> 1.866666667 | O19: =MAX(O7:O18) -> 10.3
J21: =+A5 -> 2025 | K21: mg/Nm3 | L21: Monthly mean of half-hourly averages | M21: Highest half- hourly average | N21: Monthly mean of daily averages | O21: Highest daily average
J22: A2 | K22: Jan
K23: Feb
K24: Mar
K25: Apr
K26: May
K27: Jun
K28: Jul
K29: Aug
K30: Sep
K31: Oct
K32: Nov
K33: Dec
K34: Annual | L34: =AVERAGE(L22:L33) ->  | M34: =MAX(M22:M33) -> 0 | N34: =AVERAGE(N22:N33) ->  | O34: =MAX(O22:O33) -> 0
J36: =+A5 -> 2025 | K36: mg/Nm3 | L36: Monthly mean of half-hourly averages | M36: Highest half- hourly average | N36: Monthly mean of daily averages | O36: Highest daily average
J37: A3 | K37: Jan
K38: Feb
K39: Mar
K40: Apr
K41: May
K42: Jun
K43: Jul
K44: Aug
K45: Sep
K46: Oct
K47: Nov
A48: Comments : | K48: Dec
A49: An indicated ELV value of zero in the table above means that no ammonia limit is/was set in the permit. | K49: Annual | L49: =AVERAGE(L37:L48) ->  | M49: =MAX(M37:M48) -> 0 | N49: =AVERAGE(N37:N48) ->  | O49: =MAX(O37:O48) -> 0
J51: =+A5 -> 2025 | K51: mg/Nm3 | L51: Monthly mean of half-hourly averages | M51: Highest half- hourly average | N51: Monthly mean of daily averages | O51: Highest daily average
J52: A4 | K52: Jan
K53: Feb
K54: Mar
K55: Apr
K56: May
K57: Jun
K58: Jul
K59: Aug
K60: Sep
K61: Oct
K62: Nov
K63: Dec
K64: Annual | L64: =AVERAGE(L52:L63) ->  | M64: =MAX(M52:M63) -> 0 | N64: =AVERAGE(N52:N63) ->  | O64: =MAX(O52:O63) -> 0
J66: =+A5 -> 2025 | K66: mg/Nm3 | L66: Monthly mean of half-hourly averages | M66: Highest half- hourly average | N66: Monthly mean of daily averages | O66: Highest daily average
J67: A5 | K67: Jan
K68: Feb
K69: Mar
K70: Apr
K71: May
K72: Jun
K73: Jul
K74: Aug
K75: Sep
K76: Oct
K77: Nov
K78: Dec
K79: Annual | L79: =AVERAGE(L67:L78) ->  | M79: =MAX(M67:M78) -> 0 | N79: =AVERAGE(N67:N78) ->  | O79: =MAX(O67:O78) -> 0

Sheet Template changes log
A1: Log of changes to template (Environment Agency use only)
A3: Date | B3: Description of change | C3: New version number and date
A4: 2024-01-16 | B4: Air (periodic) tab: corrected default O2 reference from 6 to 11% | C4: Version 23.5a (for incinerators) - 16/01/2024
A5: 2024-09-23 | B5: Air (periodic) tab: corrected symbol for Thallium to Tl
A6: 2024-09-23 | B6: Air (periodic) tab: removed last year's references to different emission limit values applying from 03/12/23 and updated all relevant ELVs
A7: 2024-09-23 | B7: Tabs for continuously monitored pollutants (HCl, SO2 etc.): changed terminology in table headings to improve clarity
A8: 2024-09-23 | B8: Tabs for continuously monitored pollutants (HCl, SO2 etc.): removed last year's references to different emission limit values applying from 03/12/23 and updated all relevant ELVs
A9: 2024-09-23 | B9: Perf 1 tab: updated formula for water usage to report m3 rather than litres and corrected error with formula copying operator name
A10: 2024-09-23 | B10: Operational Summary tab: table added on start-ups and shut-downs
A11: 2024-09-23 | B11: Operational Summary tab: table added on dioxins and mercury protocols
A12: 2024-09-23 | B12: Operational Summary tab: table added on AST, QAL 2 and calibration functions
A13: 2024-09-23 | B13: CO2 N2O tab: various changes made to notes to reflect the fact that most plants should now have calibrated CEMS and flow meters + some have C14 samplers and more up to date industry data | C13: Version 24a (for incinerators) - 23/09/24
A14: 2024-11-08 | B14: CO2 N2O tab: Changed the N2O CO2 equivalence factor from 298 to 265 in line with recently updated government greenhouse gas figures: https://www.gov.uk/government/publications/greenhouse-gas-reporting-conversion-factors-2024
A15: 2024-11-08 | B15: CO2 N2O tab: Added an additional requirement for municipal EfW plants to state the yearly average biogenic percentage of the waste by mass, and reference to a document which sets out a methodology for calculating NCV of waste from the results of C14 sampling.
A16: 2024-11-08 | B16: Permit Compliance tab: Two additional columns added + explanatory notes to the table entitled "Summary of non-compliances under the permit" to allow CCS scores to be stated where relevant.
A17: 2024-11-08 | B17: Residue Quality tab: Note added explaining application of TOC and LOI limits and asking operators to report both metrics where measured. | C17: Version 24.1a (for incinerators) - 08/11/24
A18: 2024-11-27 | B18: Operational Summary tab: table added on start-ups and shut-downs | C18: Version 24.2a (for incinerators) - 27/11/24
A19: 2025-11-27 | B19: Cover Page: Print as PDF and Print Report and pdf buttons deleted and blank columns removed; contents page deleted | C19: Version 25.1a (for incinerators) - 27/11/25
A20: 2025-11-27 | B20: Residue Quality tab renamed to "Residues", and Summary of residue handling table moved from Operational Summary tab to Residues tab.
A21: 2025-11-27 | B21: Various changes made to the Operational Data tab including • Reformatting of the rows under the Operational data heading (Rows 3-8) to make it clearer what information is required. • Amendment of the rows under the Energy Usage / Export heading (Rows 26-32) to calculate an “indicative parasitic load” (now excluding energy imported) • Amendment of the unit for gas usage from cubic feet to cubic metres (Row 50) • Some amendments to the first 2 notes and other minor edits • Deleted "Overall Availability, mean avg. of all lines, hrs" row
A22: 2025-11-27 | B22: Operational Summary tab: Note added requiring all emergency shut-downs be listed, irrespective of whether or not they were reportable.
A23: 2025-11-27 | B23: CO2 N2O tab: Note added to ask operators to ensure that relevant data reported here matches that which will be submitted under the Pollution Inventory
